bitfinex/quotes_ETHUSD_20250807
["timestamp","ask_amount","ask_price","bid_price","bid_amount"]
[1754569036722,1.005,3842.8,3842.2,0.001]
[1754569037225,0.451,3842.8,3842.3,4.467]
[1754569037526,0.1304,3842.4,3842.3,4.467]
[1754569037687,0.1304,3842.4,3842.3,4.463]
[1754569037688,3.73798726,3842.4,3842.3,4.463]
[1754569037890,0.1304,3842.4,3842.3,4.463]
[1754569038123,0.1304,3842.4,3842.3,4.464]
[1754569038495,0.1304,3842.4,3842.3,7.06660781]
[1754569038715,0.1304,3842.4,3842.3,7.62310781]
[1754569039432,3.05268392,3843.7,3843.0,2.60208561]
[1754569039613,0.1304,3843.2,3843.1,4.465]
[1754569040520,0.1304,3843.2,3843.1,7.06706604]
[1754569040735,0.4323,3844.1,3843.3,2.60190897]
[1754569041044,0.1304,3843.5,3843.3,2.60190897]
[1754569041623,0.1304,3843.5,3843.4,2.60186293]
[1754569041822,0.1304,3843.5,3843.2,0.5612]
[1754569042025,0.1304,3843.5,3843.2,0.51566]
[1754569042259,0.1304,3843.5,3843.3,3.16308382]
[1754569042646,1.28750449,3844.6,3843.4,0.5612]
[1754569042858,1.0274,3844.6,3843.7,2.60162613]
[1754569043066,0.1304,3844.0,3843.7,2.60162613]
[1754569043360,0.1304,3844.0,3843.7,2.88978181]
[1754569043541,1.0274,3843.9,3843.3,0.1304]
[1754569043725,0.1304,3843.6,3843.4,4.453]
[1754569043931,0.5627,3843.6,3843.5,4.451]
[1754569044946,0.1304,3843.6,3843.5,4.451]
[1754569046114,0.5627,3843.6,3843.5,4.451]
[1754569046327,1.05761629,3844.3,3843.5,4.451]
[1754569046554,0.1304,3844.1,3843.6,1.0063]
[1754569046754,0.1304,3844.1,3843.8,2.60157359]
[1754569046938,0.1304,3844.1,3843.9,4.44]
[1754569047335,0.1304,3844.1,3844.0,4.439]
[1754569047729,0.1304,3844.1,3844.0,7.04045681]
[1754569048024,1.18801629,3844.3,3844.0,5.96439954]
[1754569048227,1.05761629,3844.3,3844.2,2.60132147]
[1754569048457,1.05761629,3844.3,3844.1,3.16257461]
[1754569048648,1.05761629,3844.3,3844.2,2.60132147]
[1754569049059,1.05761629,3844.3,3844.1,1.41778495]
[1754569049235,1.05761629,3844.3,3844.1,0.5612]
[1754569049677,1.05761629,3844.3,3844.2,2.60132147]
[1754569050170,1.05761629,3844.3,3844.1,2.6013794]
[1754569050373,1.05761629,3844.3,3844.0,4.439]
[1754569050577,0.1304,3844.1,3843.6,0.1304]
[1754569050879,1.05761629,3844.3,3843.7,4.428]
[1754569051169,0.1304,3844.0,3843.7,4.428]
[1754569051331,0.1304,3844.0,3843.7,2.60165395]
[1754569051532,0.1304,3844.0,3843.8,4.427]
[1754569051870,0.1304,3844.0,3843.9,2.60152449]
[1754569052670,1.05761629,3844.3,3844.2,2.60132147]
[1754569052966,0.1304,3844.8,3844.2,5.1156]
[1754569053130,0.1304,3844.8,3844.3,0.5612]
[1754569053332,14.5,3845.5,3844.2,4.5544]
[1754569053532,3.0,3845.2,3844.4,3.16234519]
[1754569053760,0.5951,3845.3,3844.5,4.424]
[1754569053955,0.1304,3844.9,3844.6,2.60105082]
[1754569054355,14.6304,3844.9,3844.5,4.424]
[1754569054679,15.0627,3844.9,3844.5,4.424]
[1754569054836,14.6304,3844.9,3844.5,4.424]
[1754569055037,14.6304,3844.9,3844.6,4.418]
[1754569055038,1.0274,3844.8,3844.6,4.418]
[1754569055237,1.0274,3844.7,3844.6,4.418]
[1754569055432,1.1578,3844.7,3844.6,4.418]
[1754569055771,14.5,3844.9,3844.6,4.9792]
[1754569056171,14.5,3844.9,3844.6,4.418]
[1754569056476,14.5,3844.9,3844.6,7.01904155]
[1754569056674,0.1304,3845.0,3844.6,4.418]
[1754569056835,1.0274,3844.9,3844.7,4.416]
[1754569057041,0.1304,3844.6,3844.2,2.60128068]
[1754569057244,0.4323,3844.5,3844.3,4.415]
[1754569057549,0.5951,3844.6,3843.8,2.60154061]
[1754569057550,2.60098414,3844.7,3844.4,4.415]
[1754569057749,0.7255,3844.5,3844.4,4.415]
[1754569057952,3.32661848,3844.5,3844.4,4.415]
[1754569058268,18.85168403,3844.5,3844.4,4.415]
[1754569058635,18.85168403,3844.5,3843.4,0.1304]
[1754569058636,2.60118934,3844.4,3843.8,2.60158134]
[1754569058872,0.1304,3844.0,3843.9,4.411]
[1754569059435,0.1304,3844.0,3843.9,7.57372449]
[1754569059790,0.1304,3844.0,3843.9,8.5912575]
[1754569060283,14.5,3844.5,3844.0,2.60143485]
[1754569060486,15.0951,3844.5,3844.0,2.60143485]
[1754569060773,0.4323,3844.4,3844.0,2.60141435]
[1754569060971,0.4323,3844.4,3844.1,2.60138894]
[1754569061175,14.5,3844.5,3844.2,7.01932077]
[1754569061362,0.4323,3844.9,3844.5,2.60109121]
[1754569061561,0.4323,3844.9,3844.6,4.416]
[1754569061764,14.5,3844.8,3844.6,4.416]
[1754569062576,14.9323,3844.8,3844.6,4.416]
[1754569063064,1.0274,3844.7,3844.6,4.416]
[1754569063263,2.60114572,3844.5,3844.3,4.411]
[1754569063473,2.60114572,3844.5,3844.4,4.411]
[1754569064038,3.62854572,3844.5,3843.8,2.60158264]
[1754569064240,3.62854572,3844.5,3843.9,7.00951974]
[1754569064438,3.62854572,3844.5,3843.9,2.60151974]
[1754569064641,3.62854572,3844.5,3844.0,4.406]
[1754569064888,1.0274,3844.4,3844.0,4.406]
[1754569065089,1.0274,3844.3,3844.1,4.404]
[1754569065294,1.0274,3844.3,3844.2,4.402]
[1754569065499,1.0274,3844.3,3843.6,2.60172117]
[1754569065669,3.62876583,3844.2,3843.7,4.401]
[1754569065874,1.0274,3844.1,3843.7,4.401]
[1754569066073,2.60136583,3844.2,3843.7,4.401]
[1754569066074,1.0274,3844.0,3843.7,4.401]
[1754569066574,1.0274,3844.0,3843.7,7.00264137]
[1754569066774,1.0274,3844.0,3843.7,4.401]
[1754569067189,1.0274,3843.9,3843.0,0.5612]
[1754569067378,2.60179007,3843.6,3843.0,0.5612]
[1754569067700,2.60179007,3843.6,3843.1,4.396]
[1754569067881,14.5,3843.5,3843.1,4.396]
[1754569068092,14.9323,3843.5,3843.1,4.396]
[1754569068295,14.9323,3843.5,3843.1,6.99805893]
[1754569069090,0.4323,3843.4,3843.1,4.396]
[1754569069459,0.4323,3843.4,3842.5,0.001]
[1754569069460,1.0274,3843.3,3842.5,0.001]
[1754569069669,2.60199833,3843.2,3842.6,4.388]
[1754569069993,0.1304,3842.9,3842.6,4.388]
[1754569070205,0.602,3842.9,3842.6,4.388]
[1754569070399,0.602,3842.9,3842.7,4.387]
[1754569070400,0.4716,3842.8,3842.7,4.387]
[1754569070709,1.0261,3842.8,3842.7,4.387]
[1754569071000,1.1565,3842.8,3842.7,4.387]
[1754569071300,0.602,3842.8,3842.7,4.387]
[1754569071674,3.20426917,3842.8,3842.7,4.387]
[1754569071875,0.602,3842.8,3842.7,4.387]
[1754569072720,3.20426917,3842.8,3842.7,4.387]
[1754569072925,4.39488552,3842.8,3842.7,4.378]
[1754569073122,2.60240462,3842.6,3842.5,0.001]
[1754569073321,1.0261,3842.7,3842.5,0.001]
[1754569073514,0.1304,3842.6,3842.5,0.001]
[1754569073711,18.25890462,3842.6,3842.5,0.001]
[1754569074329,15.6565,3842.6,3842.5,0.001]
[1754569074530,18.25890462,3842.6,3842.5,0.001]
[1754569075094,20.34502211,3842.6,3842.5,0.001]
[1754569079138,24.71902211,3842.6,3842.5,0.001]
[1754569079294,20.34502211,3842.6,3842.5,0.001]
[1754569081675,17.74261749,3842.6,3842.5,0.001]
[1754569082021,15.102,3842.6,3842.5,0.001]
[1754569082525,14.6304,3842.6,3842.5,0.001]
[1754569082736,14.6304,3842.6,3842.5,2.60347234]
[1754569082966,14.6304,3842.6,3842.5,3.14807234]
[1754569083455,14.6304,3842.6,3842.5,2.60347234]
[1754569083961,14.6304,3842.6,3842.5,6.96547234]
[1754569085464,14.6304,3842.6,3842.5,7.51007234]
[1754569085845,14.5,3842.6,3842.5,7.51007234]
[1754569086034,3.0,3843.5,3843.1,2.60202439]
[1754569086234,3.0,3843.5,3843.1,2.60206604]
[1754569086553,0.1304,3843.2,3843.0,4.352]
[1754569086766,0.1304,3843.2,3843.0,6.95412593]
[1754569087063,0.602,3843.2,3843.0,6.95412663]
[1754569087872,0.602,3843.2,3843.0,4.352]
[1754569088197,1.0261,3843.1,3842.9,4.347]
[1754569088360,0.4716,3843.0,3842.9,4.347]
[1754569088563,0.602,3843.0,3842.9,4.347]
[1754569088966,0.602,3843.0,3842.8,4.346]
[1754569090568,0.1304,3843.0,3842.8,4.346]
[1754569090769,0.4716,3842.9,3842.8,4.346]
[1754569091001,2.60230524,3842.8,3842.7,4.344]
[1754569091188,2.73280462,3842.6,3842.5,0.001]
[1754569091592,18.25890462,3842.6,3842.5,0.001]
[1754569091912,20.61783744,3842.6,3842.5,0.001]
[1754569093668,14.6304,3842.6,3842.5,0.5456]
[1754569095241,17.70440462,3842.6,3842.5,0.001]
[1754569095448,14.6304,3842.6,3842.5,0.001]
[1754569095750,14.6304,3842.6,3842.5,0.5456]
[1754569096310,14.6304,3842.6,3842.5,0.001]
[1754569097436,14.6304,3842.6,3842.5,0.5456]
[1754569098439,14.6304,3842.6,3842.5,0.001]
[1754569099549,15.102,3842.6,3842.5,0.001]
[1754569099755,14.6304,3842.6,3842.5,0.001]
[1754569100611,14.6304,3842.6,3842.4,4.231]
[1754569102246,0.1304,3842.6,3842.5,0.5704]
[1754569102453,0.1304,3842.6,3842.5,3.91337746]
[1754569102747,0.1304,3843.2,3843.0,2.60210689]
[1754569102946,0.1304,3843.2,3843.1,4.8794]
[1754569103331,0.1304,3843.2,3843.1,4.309]
[1754569103532,14.6304,3843.2,3843.1,4.306]
[1754569103836,15.09,3843.2,3843.1,4.306]
[1754569104369,2.60225162,3842.9,3842.2,2.60362593]
[1754569104659,0.1304,3842.6,3842.3,4.304]
[1754569104812,0.1304,3842.6,3842.4,4.304]
[1754569105160,0.59,3842.6,3842.5,4.304]
[1754569105323,0.4596,3842.6,3842.5,4.304]
[1754569105648,0.4596,3842.6,3842.5,4.303]
[1754569105649,3.74064625,3842.6,3842.5,4.303]
[1754569105851,1.1382,3842.6,3842.5,4.303]
[1754569106213,1.1382,3842.6,3842.2,0.001]
[1754569106415,0.1304,3842.4,3842.3,4.299]
[1754569106642,0.1304,3842.4,3842.2,0.001]
[1754569106847,0.1304,3842.4,3842.3,4.299]
[1754569107033,0.1304,3842.4,3842.3,4.298]
[1754569107358,0.1304,3842.4,3842.3,6.90060781]
[1754569107540,0.1304,3842.8,3842.3,5.52384265]
[1754569107742,0.1304,3842.8,3842.6,2.60234163]
[1754569107944,0.1304,3842.8,3842.7,4.295]
[1754569108119,0.1304,3842.8,3842.7,6.89733689]
[1754569108515,0.1304,3842.8,3842.7,4.295]
[1754569109351,0.1304,3842.8,3842.5,2.60246015]
[1754569109513,0.1304,3842.8,3842.6,4.292]
[1754569109713,0.5482,3842.7,3842.3,2.7329915]
[1754569110032,0.5482,3842.7,3842.4,4.291]
[1754569110428,0.5482,3842.7,3842.4,6.89352386]
[1754569110629,0.59,3842.8,3842.4,4.291]
[1754569110931,0.6786,3842.6,3842.5,4.287]
[1754569111835,1.1382,3842.6,3842.5,4.287]
[1754569112036,1.1382,3842.6,3842.0,0.1304]
[1754569112372,0.1304,3842.4,3842.1,4.283]
[1754569113156,2.60251973,3842.5,3842.1,4.283]
[1754569113429,0.1304,3842.2,3842.1,4.283]
[1754569114356,1.1382,3842.2,3842.1,4.277]
[1754569116969,15.6382,3842.2,3842.1,4.277]
[1754569117370,18.24087555,3842.2,3842.1,4.277]
[1754569117717,2.60277673,3842.1,3841.7,0.001]
[1754569117897,2.60277673,3842.1,3841.9,4.272]
[1754569118194,0.1304,3841.8,3841.7,0.001]
[1754569118370,0.1304,3841.8,3841.7,4.267]
[1754569118572,0.1304,3841.8,3841.7,6.87001429]
[1754569120981,14.6304,3841.8,3841.7,4.267]
[1754569121164,0.5482,3842.6,3841.7,4.8172]
[1754569121374,0.1304,3842.3,3842.1,2.60269772]
[1754569121582,0.1304,3842.3,3842.2,4.258]
[1754569122086,14.6304,3842.3,3842.2,4.258]
[1754569122681,0.1304,3842.3,3842.2,4.258]
[1754569123403,1.1382,3842.3,3842.2,4.254]
[1754569123796,1.1382,3842.3,3842.2,4.252]
[1754569124805,1.1382,3842.3,3841.9,2.60287753]
[1754569125111,1.0078,3842.2,3842.0,2.60279879]
[1754569125312,1.0078,3842.2,3842.1,4.249]
[1754569125516,15.5078,3842.2,3842.1,4.249]
[1754569126092,1.0078,3842.2,3842.1,4.246]
[1754569126720,1.0078,3842.2,3842.1,4.245]
[1754569127285,1.0078,3842.2,3841.7,0.001]
[1754569127484,0.1304,3841.9,3841.8,6.84692725]
[1754569128100,0.1304,3841.9,3841.8,4.244]
[1754569128521,0.6786,3841.9,3841.7,0.001]
[1754569128685,0.59,3841.9,3841.8,4.243]
[1754569128890,3.61074653,3841.8,3841.7,0.001]
[1754569133188,7.84674653,3841.8,3841.7,0.001]
[1754569133614,5.2418,3841.8,3841.7,0.001]
[1754569133821,7.97514653,3841.8,3841.7,0.001]
[1754569134026,1.1382,3841.8,3841.7,0.001]
[1754569134542,3.74114653,3841.8,3841.7,0.001]
[1754569135793,3.74114653,3841.8,3841.7,2.001]
[1754569136113,4.79884229,3841.8,3841.7,2.001]
[1754569138539,4.79884229,3841.8,3841.7,0.001]
[1754569139942,9.02084229,3841.8,3841.7,0.001]
[1754569140748,7.49854653,3841.8,3841.7,0.001]
[1754569141099,7.96224653,3841.8,3841.7,0.001]
[1754569142309,3.74524653,3841.8,3841.7,0.001]
[1754569142625,7.96024653,3841.8,3841.7,0.001]
[1754569145449,2.73334653,3841.8,3841.7,0.001]
[1754569145623,6.94134653,3841.8,3841.7,0.001]
[1754569146239,7.48124653,3841.8,3841.7,0.001]
[1754569146438,2.73334653,3841.8,3841.7,0.001]
[1754569146612,6.93934653,3841.8,3841.7,0.001]
[1754569147037,7.47924653,3841.8,3841.7,0.001]
[1754569147237,7.94294653,3841.8,3841.7,1.001]
[1754569149423,17.78626694,3841.8,3841.7,1.001]
[1754569149623,8.99752345,3841.8,3841.7,1.001]
[1754569149824,8.52582345,3841.8,3841.7,1.001]
[1754569150135,7.47124653,3841.8,3841.7,1.001]
[1754569150523,7.93494653,3841.8,3841.7,1.001]
[1754569153329,8.17863032,3841.8,3841.7,1.001]
[1754569153881,16.96737381,3841.8,3841.7,1.001]
[1754569154042,19.96737381,3841.8,3841.7,1.001]
[1754569154358,18.02639346,3841.8,3841.7,1.001]
[1754569154558,22.22239346,3841.8,3841.7,1.001]
[1754569156464,2.60301429,3841.7,3841.6,0.001]
[1754569156663,7.04269808,3841.7,3841.6,0.001]
[1754569156832,8.52407496,3841.7,3841.6,0.001]
[1754569157032,9.07407496,3841.7,3841.6,0.001]
[1754569157232,17.86281845,3841.7,3841.6,0.001]
[1754569157964,8.52407496,3841.7,3841.6,0.001]
[1754569158173,10.04269808,3841.7,3841.6,0.001]
[1754569159252,9.79901429,3841.7,3841.6,0.001]
[1754569159466,10.58284288,3841.7,3841.6,0.001]
[1754569159666,9.79901429,3841.7,3841.6,0.001]
[1754569159976,10.0429447,3841.7,3841.6,0.001]
[1754569160156,12.28827382,3841.7,3841.6,0.001]
[1754569160983,11.32057382,3841.7,3841.6,0.001]
[1754569161347,11.85007382,3841.7,3841.6,0.001]
[1754569161784,12.28827382,3841.7,3841.6,0.001]
[1754569166994,12.83827382,3841.7,3841.6,0.001]
[1754569167185,12.83827382,3841.7,3841.6,1e-08]
[1754569167559,5.60308204,3841.6,3841.5,1e-08]
[1754569167766,7.96407986,3841.6,3841.5,1e-08]
[1754569167965,8.40227986,3841.6,3841.5,1e-08]
[1754569168360,8.50659486,3841.6,3841.5,1e-08]
[1754569169289,8.50665674,3841.6,3841.5,1e-08]
[1754569169786,23.00658113,3841.6,3841.5,1e-08]
[1754569170162,6.15321757,3841.4,3841.3,1e-08]
[1754569170371,20.78990686,3841.4,3841.3,1e-08]
[1754569170561,21.75760686,3841.4,3841.3,1e-08]
[1754569170762,36.25760686,3841.4,3841.3,1e-08]
[1754569174501,18.62476337,3841.4,3841.3,1e-08]
[1754569174664,21.54313425,3841.4,3841.3,0.36870001]
[1754569175290,24.67353425,3841.4,3841.3,1e-08]
[1754569175490,24.67325434,3841.4,3841.3,1e-08]
[1754569175768,24.67325434,3841.4,3841.3,0.36870001]
[1754569176391,20.47725434,3841.4,3841.3,1e-08]
[1754569176700,24.67225434,3841.4,3841.3,1e-08]
[1754569177662,10.17225434,3841.4,3841.3,1e-08]
[1754569178098,24.67225434,3841.4,3841.3,1e-08]
[1754569178489,24.6722798,3841.4,3841.3,1e-08]
[1754569178999,27.35616974,3841.4,3841.3,1e-08]
[1754569179202,25.63999046,3841.4,3841.3,1e-08]
[1754569179369,21.44499046,3841.4,3841.3,1e-08]
[1754569179702,24.67229046,3841.4,3841.3,1e-08]
[1754569183931,17.87407289,3841.4,3841.3,1e-08]
[1754569184074,24.67129046,3841.4,3841.3,0.36870001]
[1754569184622,24.67129046,3841.4,3841.3,1e-08]
[1754569186022,24.42761757,3841.4,3841.3,1e-08]
[1754569186303,20.47738496,3841.4,3841.3,1e-08]
[1754569186670,24.67138496,3841.4,3841.3,1e-08]
[1754569186873,10.17138496,3841.4,3841.3,1e-08]
[1754569187492,24.42761757,3841.4,3841.3,1e-08]
[1754569187694,24.67139171,3841.4,3841.3,1e-08]
[1754569188075,14.87416987,3841.4,3841.3,0.36870001]
[1754569188407,14.87415429,3841.4,3841.3,0.51380001]
[1754569188610,14.6304,3841.4,3841.3,0.36870001]
[1754569189117,14.6304,3841.4,3841.3,1e-08]
[1754569189504,14.87416489,3841.4,3841.3,1e-08]
[1754569189718,14.6304,3841.4,3841.3,1e-08]
[1754569190087,17.23361757,3841.4,3841.3,1e-08]
[1754569190622,22.41741757,3841.4,3841.3,1e-08]
[1754569190817,22.66119545,3841.4,3841.3,1e-08]
[1754569193682,25.66119545,3841.4,3841.3,1e-08]
[1754569193888,25.66119545,3841.4,3841.0,1e-08]
[1754569193889,26.21119545,3841.4,3841.0,1e-08]
[1754569194136,2.60342089,3841.1,3841.0,1e-08]
[1754569194421,15.58416438,3841.1,3841.0,1e-08]
[1754569194586,30.08416438,3841.1,3841.0,1e-08]
[1754569194788,31.31880033,3841.1,3841.0,1e-08]
[1754569196724,31.42311533,3841.1,3841.0,1e-08]
[1754569196925,31.42304773,3841.1,3841.0,1e-08]
[1754569197235,31.42304773,3841.1,3840.9,1e-08]
[1754569197236,5.60348867,3841.0,3840.9,1e-08]
[1754569197388,6.83805702,3841.0,3840.9,1e-08]
[1754569197583,6.96845702,3841.0,3840.9,1e-08]
[1754569197814,21.46845702,3841.0,3840.9,1e-08]
[1754569198327,22.01845702,3841.0,3840.9,1e-08]
[1754569199837,30.12680051,3841.0,3840.9,1e-08]
[1754569200123,34.44920051,3841.0,3840.9,1e-08]
[1754569200822,34.55351851,3841.0,3840.9,1e-08]
[1754569201325,35.10351851,3841.0,3840.9,1e-08]
[1754569201625,6.15355645,3840.9,3840.8,1e-08]
[1754569201828,2.60362424,3840.8,3840.7,1e-08]
[1754569201988,7.57799259,3840.8,3840.7,1e-08]
[1754569202192,22.65959259,3840.8,3840.7,1e-08]
[1754569203427,25.65959259,3840.8,3840.7,1e-08]
[1754569204539,25.76391659,3840.8,3840.7,1e-08]
[1754569204935,25.76358034,3840.8,3840.7,1e-08]
[1754569205514,5.60369203,3840.7,3840.6,1e-08]
[1754569205714,16.17660332,3840.7,3840.6,1e-08]
[1754569206036,15.93323552,3840.7,3840.6,1e-08]
[1754569206201,30.43323552,3840.7,3840.6,1e-08]
[1754569206713,24.29469203,3840.7,3840.6,1e-08]
[1754569208308,33.08343552,3840.7,3840.6,1e-08]
[1754569208509,34.07423552,3840.7,3840.6,1e-08]
[1754569209327,34.62423552,3840.7,3840.6,1e-08]
[1754569209508,34.62423552,3840.7,3840.1,0.001]
[1754569209509,2.60403104,3840.2,3840.1,0.001]
[1754569209704,19.13277453,3840.2,3839.8,1e-08]
[1754569209944,12.07337797,3839.9,3839.8,1e-08]
[1754569210144,30.76337797,3839.9,3839.8,1e-08]
[1754569210541,31.75417797,3839.9,3839.8,1e-08]
[1754569210843,31.85852997,3839.9,3839.8,1e-08]
[1754569212444,31.30852997,3839.9,3839.8,1e-08]
[1754569214737,30.31772997,3839.9,3839.8,1e-08]
[1754569216219,30.85732997,3839.9,3839.8,1e-08]
[1754569216558,30.31772997,3839.9,3839.8,1e-08]
[1754569217353,30.85732997,3839.9,3839.8,1e-08]
[1754569217535,31.30852997,3839.9,3839.8,1e-08]
[1754569218643,6.04444715,3837.9,3837.2,0.55]
[1754569218845,6.04444715,3837.9,3837.8,5.60665949]
[1754569219054,6.04444715,3837.9,3837.8,5.73705949]
[1754569220768,6.04444715,3837.9,3837.8,0.1314]
[1754569220928,4.72152886,3837.9,3837.8,0.44464]
[1754569221273,4.72152886,3837.9,3837.8,0.31424]
[1754569221570,4.72152886,3837.9,3837.8,2.60665949]
[1754569223264,4.72152886,3837.9,3837.8,0.001]
[1754569224030,0.1304,3838.1,3837.8,0.001]
[1754569224427,14.5,3838.6,3837.8,0.001]
[1754569224627,0.1304,3838.2,3837.8,0.001]
[1754569224822,14.5,3838.6,3837.8,0.001]
[1754569225130,0.1304,3839.0,3838.4,0.1304]
[1754569225341,0.1304,3839.0,3838.5,2.60513313]
[1754569225537,14.5,3838.9,3838.6,0.53407941]
[1754569225740,25.89366736,3838.9,3838.4,0.1304]
[1754569225945,0.1304,3838.7,3838.1,3.1304]
[1754569226144,26.33016208,3838.9,3837.7,4.188]
[1754569226145,2.60543321,3838.2,3837.7,4.188]
[1754569226376,0.1304,3838.0,3837.7,4.188]
[1754569226559,14.5,3837.9,3837.8,0.6935182]
[1754569227486,14.5,3837.9,3837.8,0.001]
[1754569227691,14.5,3837.9,3837.8,2.60665949]
[1754569227898,14.5,3837.9,3837.8,0.001]
[1754569229493,2.60461458,3839.4,3838.7,2.60499963]
[1754569229707,0.52533786,3839.7,3839.0,2.60480204]
[1754569229909,14.5,3839.6,3839.1,2.60475965]
[1754569230059,4.3164,3839.5,3839.1,2.60475965]
[1754569230254,4.3164,3839.5,3839.0,2.73523364]
[1754569230459,4.3164,3839.5,3838.4,2.60525218]
[1754569230460,2.6046389,3839.4,3838.7,2.605006]
[1754569230683,0.1304,3839.2,3838.7,0.1304]
[1754569230884,0.1304,3839.2,3838.8,2.60498072]
[1754569231109,0.1304,3839.2,3838.8,3.08769378]
[1754569231778,4.186,3839.1,3838.8,3.08769378]
[1754569231978,4.186,3839.1,3838.9,2.60491181]
[1754569232205,0.1304,3839.2,3838.8,3.08767904]
[1754569232564,4.185,3839.1,3838.8,3.08767904]
[1754569232808,4.185,3839.1,3838.9,0.58231559]
[1754569233103,4.185,3839.1,3838.9,2.60490939]
[1754569233705,4.185,3839.1,3838.8,2.60495724]
[1754569233866,4.185,3839.1,3838.7,0.1304]
[1754569233867,4.185,3839.1,3838.7,2.73544819]
[1754569234211,4.185,3839.1,3838.9,2.60486017]
[1754569234663,4.185,3839.1,3838.8,2.60496432]
[1754569234999,0.1304,3839.2,3838.8,2.60496432]
[1754569235299,4.185,3839.1,3838.9,2.60489613]
[1754569235508,4.185,3839.1,3838.8,3.22447557]
[1754569235660,4.185,3839.1,3838.8,3.14677557]
[1754569235863,4.185,3839.1,3838.9,2.60490216]
[1754569236397,0.1304,3839.4,3838.9,2.60490216]
[1754569236599,4.184,3839.3,3838.9,0.5882236]
[1754569236797,4.715,3839.3,3838.9,0.5882236]
[1754569236998,0.9675,3839.2,3838.9,0.5882236]
[1754569237297,0.9675,3839.1,3838.7,0.1304]
[1754569237500,4.184,3839.0,3838.7,0.1304]
[1754569237865,4.715,3839.0,3838.7,0.1304]
[1754569238359,0.531,3839.0,3838.7,2.73543223]
[1754569238563,4.183,3838.9,3838.7,2.73543223]
[1754569238759,4.183,3838.9,3838.7,3.69949341]
[1754569238960,4.183,3838.9,3838.7,1.09446118]
[1754569239985,4.183,3838.9,3838.8,2.60498072]
[1754569240533,4.183,3838.9,3838.7,3.69949341]
[1754569240718,4.183,3838.9,3838.7,1.09446118]
[1754569241215,0.9675,3838.8,3838.7,1.09446118]
[1754569241412,0.531,3838.8,3838.7,1.09446118]
[1754569241617,4.183,3838.9,3838.7,0.1304]
[1754569241843,4.714,3838.9,3838.7,0.1304]
[1754569243077,0.9675,3838.8,3837.7,0.0787]
[1754569243279,0.1304,3838.6,3838.1,2.73581321]
[1754569243496,14.5,3838.5,3838.4,2.73565218]
[1754569243707,14.5,3838.5,3838.4,2.81335218]
[1754569243877,14.5,3838.5,3838.4,3.05480417]
[1754569244073,4.182,3838.7,3838.4,0.37185199]
[1754569244275,4.713,3838.7,3838.5,0.24145199]
[1754569244477,0.4365,3838.6,3838.4,0.1304]
[1754569244672,0.4365,3838.6,3838.5,0.24146037]
[1754569244911,4.182,3838.7,3838.5,0.24146037]
[1754569245117,4.182,3838.7,3838.6,0.24146037]
[1754569245657,19.213,3838.7,3838.6,0.24146037]
[1754569246311,14.5,3838.7,3838.6,0.24146037]
[1754569246520,18.681,3838.7,3838.6,0.24146037]
[1754569247282,5.1485,3838.7,3838.6,0.24146037]
[1754569247512,5.1485,3838.7,3838.6,0.24146645]
[1754569248595,5.1485,3838.7,3838.4,0.1304]
[1754569248788,0.531,3838.6,3838.4,2.73564869]
[1754569249115,4.6175,3838.7,3838.4,2.73564869]
[1754569249116,4.181,3838.5,3838.4,2.73564869]
[1754569249522,4.181,3838.5,3838.4,0.1304]
[1754569249705,4.712,3838.5,3838.4,0.1304]
[1754569249902,5.1485,3838.5,3838.4,0.1304]
[1754569250097,5.1485,3838.5,3838.0,3.001]
[1754569250313,5.214,3838.5,3838.3,0.1304]
[1754569250519,4.181,3838.5,3838.4,2.60525218]
[1754569250831,15.0965,3838.8,3838.5,2.60517555]
[1754569250991,15.0965,3838.8,3838.5,2.60518239]
[1754569251187,4.18,3838.7,3838.5,2.60518239]
[1754569251618,4.18,3838.7,3838.5,3.13927231]
[1754569251805,4.18,3838.7,3838.6,4.3]
[1754569252489,0.5965,3838.7,3838.6,4.3]
[1754569252690,4.7755,3838.7,3838.6,4.3]
[1754569253113,5.2465,3838.7,3838.6,4.3]
[1754569254198,7.85154858,3838.7,3838.6,4.3]
[1754569254831,7.98194858,3838.7,3838.6,4.3]
[1754569254989,1.1979,3838.7,3838.6,4.3]
[1754569255327,4.7755,3838.7,3838.6,4.3]
[1754569256027,0.1304,3838.8,3838.6,4.3]
[1754569256028,15.5675,3839.0,3838.6,7.73903934]
[1754569256236,0.002,3839.4,3838.8,8.78874349]
[1754569256398,0.002,3839.4,3839.0,2.60480362]
[1754569256399,4.178,3839.3,3839.0,2.60480362]
[1754569256817,0.1324,3839.4,3839.1,2.60477699]
[1754569257238,4.178,3839.3,3839.0,2.604823]
[1754569257442,0.7289,3839.4,3839.0,3.13884164]
[1754569257613,4.178,3839.3,3839.0,0.53401864]
[1754569257946,0.7289,3839.4,3839.0,0.53401864]
[1754569258164,4.178,3839.3,3838.9,2.73525663]
[1754569258292,0.7289,3839.4,3839.0,2.60481849]
[1754569258496,0.7289,3839.4,3838.9,8.91914349]
[1754569258497,14.5,3839.3,3838.9,8.91914349]
[1754569258815,0.002,3839.4,3839.2,2.73508954]
[1754569258816,4.18,3839.4,3839.2,2.73508954]
[1754569259527,4.7765,3839.4,3839.2,0.1304]
[1754569259829,1.0675,3839.3,3839.2,0.1304]
[1754569260702,1.0675,3839.3,3838.9,3.0]
[1754569260922,1.0675,3839.2,3838.9,4.00635766]
[1754569261234,1.0675,3839.1,3838.9,3.611261]
[1754569261637,1.0675,3839.1,3839.0,2.60484501]